bitfinex/quotes_SOLUSD_20241214
["timestamp","ask_amount","ask_price","bid_price","bid_amount"]
[1734178986242,1.6364,223.73,223.63,23.776884]
[1734178988061,5.5873,223.72,223.59,0.12549]
[1734178988238,5.5873,223.72,223.61,32.21337167]
[1734178988546,5.5873,223.72,223.62,8.43648767]
[1734178989643,5.5873,223.72,223.63,23.902374]
[1734178989850,1.6364,223.73,223.63,32.33886167]
[1734178990529,1.6364,223.73,223.64,8.43648767]
[1734178990924,1.6364,223.73,223.65,8.43648767]
[1734178991165,1.6364,223.73,223.67,0.12549]
[1734178991346,6.3024,223.74,223.68,8.43648767]
[1734178991681,6.3024,223.74,223.69,8.43648767]
[1734178993437,6.3024,223.74,223.68,23.776884]
[1734178994154,6.3024,223.74,223.69,0.12549]
[1734178998433,6.3024,223.74,223.67,8.43648767]
[1734178998755,6.3024,223.74,223.66,23.776884]
[1734178999655,6.3024,223.74,223.64,23.776884]
[1734178999846,6.3024,223.74,223.63,23.902374]
[1734179000841,6.3024,223.74,223.64,0.12549]
[1734179006870,5.587,223.73,223.58,0.12549]
[1734179007041,5.587,223.73,223.61,8.43648767]
[1734179007243,5.587,223.73,223.62,0.12549]
[1734179008456,5.587,223.73,223.61,8.43648767]
[1734179008457,1.5436,223.72,223.6,8.56197767]
[1734179008664,25.5875,223.71,223.62,0.12549]
[1734179009965,25.5875,223.71,223.61,23.902374]
[1734179010282,6.4817,223.7,223.51,18.9349]
[1734179010471,6.4817,223.7,223.58,0.12549]
[1734179011186,5.588,223.69,223.58,0.12549]
[1734179011553,5.588,223.69,223.58,23.902374]
[1734179012765,20.0,223.67,223.58,23.902374]
[1734179014266,20.0,223.67,223.58,0.12549]
[1734179015960,20.0,223.67,223.57,0.12549]
[1734179016161,20.0,223.67,223.57,23.902374]
[1734179020477,20.0,223.67,223.6,0.12549]
[1734179020773,4.4704,223.69,223.61,8.56197767]
[1734179022664,6.4817,223.7,223.63,0.12549]
[1734179031282,6.4817,223.7,223.61,23.776884]
[1734179033182,6.4817,223.7,223.62,0.12549]
[1734179034890,5.588,223.69,223.58,8.43648767]
[1734179035078,5.588,223.69,223.59,23.902374]
[1734179037169,5.588,223.69,223.6,0.12549]
[1734179039388,5.588,223.69,223.55,20.0]
[1734179039587,5.588,223.69,223.53,0.67073829]
[1734179039588,5.588,223.69,223.59,24.027864]
[1734179040477,5.588,223.69,223.59,0.12549]
[1734179041378,5.588,223.69,223.59,8.43648767]
[1734179042103,5.588,223.69,223.59,0.12549]
[1734179042666,5.588,223.69,223.59,8.43648767]
[1734179043294,6.4817,223.7,223.59,8.43648767]
[1734179043594,4.4704,223.69,223.6,0.12549]
[1734179044215,4.4704,223.69,223.59,0.25098]
[1734179044599,4.4704,223.69,223.59,24.027864]
[1734179047013,4.4704,223.69,223.61,0.12549]
[1734179047177,4.4704,223.69,223.61,23.902374]
[1734179047379,4.4704,223.69,223.6,8.43648767]
[1734179048720,4.4704,223.69,223.61,0.12549]
[1734179052009,4.4704,223.69,223.56,8.43648767]
[1734179052315,20.0,223.67,223.57,23.776884]
[1734179052519,20.0,223.67,223.56,8.43648767]
[1734179052718,20.0,223.67,223.57,0.12549]
[1734179053300,20.0,223.67,223.55,0.12549]
[1734179053499,4.471,223.66,223.55,24.027864]
[1734179054283,4.471,223.66,223.55,8.68746767]
[1734179054604,4.471,223.66,223.57,0.12549]
[1734179055201,4.471,223.66,223.56,0.12549]
[1734179057694,1.6456,223.65,223.56,0.12549]
[1734179057897,6.1954,223.64,223.56,0.12549]
[1734179058092,6.1954,223.64,223.52,0.12549]
[1734179058093,10.667,223.64,223.52,0.12549]
[1734179058298,10.667,223.64,223.51,8.43648767]
[1734179058890,10.667,223.64,223.52,8.43648767]
[1734179061023,10.667,223.64,223.53,32.46435167]
[1734179061715,10.667,223.64,223.53,24.027864]
[1734179061912,10.667,223.64,223.53,32.46435167]
[1734179062614,10.667,223.64,223.53,0.12549]
[1734179065300,10.667,223.64,223.49,0.67095286]
[1734179065501,10.667,223.64,223.51,8.43648767]
[1734179067310,10.667,223.64,223.52,0.12549]
[1734179067695,20.0,223.61,223.52,0.12549]
[1734179069104,20.0,223.61,223.51,8.43648767]
[1734179069518,24.472,223.61,223.48,23.902374]
[1734179069725,6.1954,223.6,223.49,8.56197767]
[1734179070414,6.1954,223.6,223.49,8.43648767]
[1734179071699,6.1954,223.6,223.47,24.027864]
[1734179071928,6.1954,223.6,223.49,8.43648767]
[1734179073828,1.6136,223.59,223.49,8.43648767]
[1734179074006,1.6136,223.59,223.49,0.12549]
[1734179074918,1.6136,223.59,223.49,8.43648767]
[1734179075703,1.6136,223.59,223.48,8.56197767]
[1734179076318,1.6136,223.59,223.47,0.67102793]
[1734179076319,4.4726,223.58,223.47,0.67102793]
[1734179076534,20.0,223.56,223.44,0.67104606]
[1734179076701,20.0,223.56,223.46,8.43648767]
[1734179077615,20.0,223.56,223.45,8.43648767]
[1734179078127,7.6341,223.55,223.42,0.5389224]
[1734179078530,7.6341,223.55,223.43,0.12549]
[1734179078827,7.6341,223.55,223.43,8.56197767]
[1734179079202,4.4734,223.54,223.43,8.56197767]
[1734179079413,4.4734,223.54,223.44,8.43648767]
[1734179080031,4.4734,223.54,223.43,32.46435167]
[1734179080410,4.4738,223.52,223.42,0.5389224]
[1734179081329,7.6341,223.51,223.42,0.5389224]
[1734179081514,4.4742,223.5,223.42,0.5389224]
[1734179082529,20.0,223.48,223.42,0.5389224]
[1734179083755,6.993,223.46,223.3,10.67142589]
[1734179083906,4.4748,223.47,223.3,10.0]
[1734179083907,6.0665,223.41,223.3,10.0]
[1734179084410,6.0665,223.41,223.3,18.43648767]
[1734179084612,6.0665,223.41,223.3,10.0]
[1734179085933,10.5427,223.41,223.3,10.0]
[1734179086238,10.5427,223.41,223.32,9.5]
[1734179088318,13.24785373,223.41,223.32,9.5]
[1734179088717,6.0665,223.41,223.32,9.5]
[1734179093864,6.0665,223.41,223.33,0.12549]
[1734179094039,6.0665,223.41,223.33,32.46435167]
[1734179097070,6.0665,223.41,223.33,23.902374]
[1734179097271,6.0665,223.41,223.32,9.5]
[1734179105044,6.0665,223.41,223.34,0.12549]
[1734179105245,6.3676,223.46,223.35,23.776884]
[1734179105450,6.3676,223.46,223.32,9.5]
[1734179105671,6.3676,223.46,223.34,0.12549]
[1734179111871,6.3676,223.46,223.34,8.68746767]
[1734179112071,6.3676,223.46,223.35,32.21337167]
[1734179112388,6.3676,223.46,223.36,8.43648767]
[1734179112749,6.3676,223.46,223.35,32.21337167]
[1734179112974,6.3676,223.46,223.36,24.027864]
[1734179114771,10.816,223.53,223.41,0.12549]
[1734179114965,10.816,223.53,223.41,0.25098]
[1734179116265,20.0,223.5,223.41,0.25098]
[1734179116972,24.4743,223.5,223.38,0.12549]
[1734179117353,24.4743,223.5,223.38,0.25098]
[1734179117973,4.4743,223.5,223.4,8.68746767]
[1734179118183,6.3424,223.53,223.41,8.68746767]
[1734179118485,6.3424,223.53,223.41,0.25098]
[1734179119676,6.3424,223.53,223.43,23.776884]
[1734179120956,6.3424,223.53,223.44,8.68746767]
[1734179121155,6.3424,223.53,223.45,23.776884]
[1734179121984,6.3424,223.53,223.33,11.194]
[1734179122187,20.0,223.5,223.37,8.43648767]
[1734179123151,20.0,223.5,223.38,24.027864]
[1734179123477,20.0,223.5,223.4,0.25098]
[1734179123665,20.0,223.5,223.4,24.027864]
[1734179123862,4.4738,223.52,223.42,8.56197767]
[1734179124062,6.3424,223.53,223.44,23.776884]
[1734179125760,6.3424,223.53,223.45,0.25098]
[1734179125961,6.3424,223.53,223.45,8.68746767]
[1734179126167,6.3424,223.53,223.46,23.776884]
[1734179126981,6.3424,223.53,223.44,0.12549]
[1734179127188,6.3424,223.53,223.43,24.027864]
[1734179127367,10.8161,223.53,223.41,23.776884]
[1734179127569,10.8161,223.53,223.4,0.12549]
[1734179127962,10.8161,223.53,223.4,8.56197767]
[1734179128695,10.8161,223.53,223.41,23.776884]
[1734179129994,10.8161,223.53,223.41,0.12549]
[1734179130297,20.0,223.5,223.39,0.12549]
[1734179130664,20.0,223.5,223.35,1.6164]
[1734179131179,20.0,223.5,223.35,10.05288767]
[1734179131771,20.0,223.5,223.36,0.12549]
[1734179131971,20.0,223.5,223.36,32.46435167]
[1734179131972,4.4744,223.49,223.36,32.46435167]
[1734179132178,4.4744,223.49,223.38,8.56197767]
[1734179133100,4.4744,223.49,223.4,0.12549]
[1734179141091,4.4744,223.49,223.38,24.027864]
[1734179141493,4.4744,223.49,223.38,23.902374]
[1734179143897,20.0,223.5,223.39,0.12549]
[1734179144204,20.0,223.5,223.4,0.12549]
[1734179147698,20.0,223.5,223.38,24.027864]
[1734179149170,4.4744,223.49,223.36,23.776884]
[1734179149395,7.7279,223.48,223.35,20.0]
[1734179149697,7.7279,223.48,223.32,9.5]
[1734179149698,20.0,223.45,223.32,17.93648767]
[1734179150788,4.4754,223.44,223.33,8.43648767]
[1734179153277,4.4754,223.44,223.32,17.93648767]
[1734179153499,4.4754,223.44,223.33,23.902374]
[1734179153803,4.4754,223.44,223.34,8.43648767]
[1734179159305,20.0,223.45,223.37,0.12549]
[1734179159500,4.4748,223.47,223.37,0.12549]
[1734179159709,4.4748,223.47,223.37,8.56197767]
[1734179161294,4.4748,223.47,223.35,23.776884]
[1734179161895,4.4748,223.47,223.35,8.43648767]
[1734179162496,4.4748,223.47,223.34,0.25098]
[1734179162816,4.4748,223.47,223.35,8.43648767]
[1734179164406,20.0,223.45,223.34,0.12549]
[1734179164602,10.6431,223.44,223.32,9.5]
[1734179164921,6.1677,223.44,223.39,0.12549]
[1734179165125,6.1677,223.44,223.39,9.23326071]
[1734179165297,6.1677,223.44,223.39,0.79677304]
[1734179165626,6.1677,223.44,223.38,8.43648767]
[1734179165809,6.1677,223.44,223.37,32.33886167]
[1734179166021,6.1677,223.44,223.38,0.12549]
[1734179167124,6.1677,223.44,223.36,0.12549]
[1734179167820,6.1677,223.44,223.36,0.25098]
[1734179168615,6.1677,223.44,223.36,0.12549]
[1734179170218,6.1677,223.44,223.36,23.902374]
[1734179171705,6.1677,223.44,223.33,0.67144799]
[1734179171903,6.1677,223.44,223.33,9.10793566]
[1734179172105,6.1677,223.44,223.34,23.902374]
[1734179172699,6.1677,223.44,223.33,23.902374]
[1734179174335,6.1677,223.44,223.32,9.5]
[1734179174516,10.6432,223.44,223.32,9.5]
[1734179175233,1.5889,223.43,223.32,9.5]
[1734179176437,4.4758,223.42,223.32,9.5]
[1734179179351,6.1338,223.39,223.32,9.5]
[1734179181327,4.4766,223.38,223.32,9.5]
[1734179181523,21.6413,223.36,223.32,9.5]
[1734179185940,1.6413,223.36,223.32,9.5]
[1734179186128,6.1338,223.39,223.32,9.5]
[1734179186935,6.1338,223.39,223.33,0.67151461]
[1734179188238,6.1338,223.39,223.32,8.0]
[1734179198637,10.6103,223.39,223.32,8.0]
[1734179199354,10.6103,223.39,223.32,6.5]
[1734179202231,20.0,223.36,223.32,6.5]
[1734179202440,20.0,223.36,223.32,5.0]
[1734179217874,4.4772,223.35,223.32,5.0]
[1734179218076,4.4772,223.35,223.32,2.2975]
[1734179218077,24.4772,223.35,223.32,2.2975]
[1734179219880,4.4776,223.33,223.32,2.2975]
[1734179220574,6.2899,223.34,223.32,2.2975]
[1734179220765,4.477,223.37,223.32,2.2975]
[1734179221854,24.477,223.37,223.32,2.2975]
[1734179228476,6.2899,223.4,223.32,2.2975]
[1734179229158,4.4762,223.41,223.32,2.2975]
[1734179229667,20.0,223.4,223.32,2.2975]
[1734179230180,4.4762,223.41,223.32,2.2975]
[1734179230977,10.8813,223.45,223.33,23.902374]
[1734179231181,10.8813,223.45,223.35,23.902374]
[1734179232687,10.8813,223.45,223.33,0.12549]
[1734179232866,10.8813,223.45,223.32,2.2975]
[1734179232867,20.0,223.42,223.32,2.2975]
[1734179233982,20.0,223.4,223.32,2.2975]
[1734179235269,20.0,223.42,223.32,2.2975]
[1734179235466,4.4764,223.39,223.32,2.2975]
[1734179239695,20.0,223.37,223.32,2.2975]
[1734179240871,4.477,223.36,223.32,2.2975]
[1734179242900,20.0,223.33,223.32,2.2975]
[1734179244690,20.0,223.33,223.32,0.0197]
[1734179248897,20.0,223.32,223.3,8.5197]
[1734179251805,4.4774,223.34,223.3,8.5197]
[1734179251806,20.0,223.34,223.3,8.5197]
[1734179252211,4.4768,223.38,223.3,8.5197]
[1734179253612,24.4768,223.38,223.3,8.5197]
[1734179255909,10.671679,223.41,223.31,0.12549]
[1734179256118,4.476,223.42,223.31,24.57392812]
[1734179257723,20.0,223.41,223.31,33.01041579]
[1734179258414,20.0,223.41,223.31,24.57392812]
[1734179259928,20.0,223.41,223.31,23.902374]
[1734179260731,20.0,223.41,223.3,9.19123637]
[1734179260732,4.4762,223.4,223.3,8.5197]
[1734179263523,4.4438997,223.4,223.3,8.5197]
[1734179264321,4.4766,223.38,223.3,8.5197]
[1734179265041,20.0,223.37,223.3,8.5197]
[1734179266230,4.477,223.36,223.3,8.5197]
[1734179272136,4.477,223.36,223.3,1.7297]
[1734179272842,20.0,223.33,223.3,1.7297]
[1734179273861,14.477,223.36,223.3,1.7297]
[1734179274167,20.0,223.33,223.3,1.7297]
[1734179276037,24.4776,223.33,223.3,1.7297]
[1734179276367,20.0,223.32,223.3,1.7297]
[1734179277376,4.478,223.31,223.3,1.7297]
[1734179279839,8.9547,223.35,223.3,1.7297]
[1734179280167,20.0,223.35,223.3,1.7297]
[1734179281091,4.4774,223.34,223.3,1.7297]
[1734179286387,20.0,223.37,223.3,1.7297]
[1734179286593,24.4768,223.37,223.3,1.7297]
[1734179288992,7.53513626,223.4,223.3,1.7297]
[1734179289494,10.24787807,223.4,223.3,1.7297]
[1734179290075,20.0,223.37,223.3,1.7297]
[1734179291380,4.477,223.36,223.3,1.7297]
[1734179295595,20.0,223.33,223.3,1.7297]
[1734179296575,4.4778,223.32,223.3,1.7297]
[1734179305431,20.0,223.33,223.3,1.7297]
[1734179305707,20.0,223.37,223.3,1.7297]
[1734179306707,4.477,223.36,223.3,1.7297]
[1734179316723,20.0,223.33,223.3,1.7297]
[1734179317309,20.0,223.32,223.3,1.7297]
[1734179318428,4.478,223.31,223.3,1.7297]
[1734179320638,20.0,223.33,223.3,1.7297]
[1734179321938,4.4778,223.32,223.3,1.7297]
[1734179327233,0.12549,223.31,223.27,10.0]
[1734179327419,20.0,223.29,223.27,9.5]
[1734179328522,4.4786,223.28,223.27,9.5]
[1734179330029,20.0,223.29,223.27,9.5]
[1734179330231,20.0,223.3,223.27,9.5]
[1734179331140,22.7515944,223.33,223.27,9.5]
[1734179331357,4.4784,223.29,223.27,9.5]
[1734179337127,20.12549,223.28,223.2,2.1098224]
[1734179338567,4.4788,223.27,223.2,2.1098224]
[1734179338941,4.4788,223.27,223.2,1.6098224]
[1734179341876,20.0,223.23,223.2,0.0389224]
[1734179342466,20.0,223.24,223.2,0.0389224]
[1734179343241,20.0,223.24,223.12,1.521]
[1734179343242,20.0,223.2,223.12,1.521]
[1734179344271,20.0,223.21,223.12,1.521]
[1734179345386,4.4802,223.2,223.12,1.521]
[1734179349271,8.9577,223.27,223.16,8.43648767]
[1734179349665,8.9577,223.27,223.17,9.95748767]
[1734179349864,8.9577,223.27,223.17,1.521]
[1734179350169,8.9577,223.27,223.17,9.95748767]
[1734179350342,8.9577,223.27,223.17,1.521]
[1734179350845,4.4786,223.28,223.17,9.95748767]
[1734179351046,4.4786,223.28,223.18,8.43648767]
[1734179351487,4.4786,223.28,223.17,9.95748767]
[1734179351852,4.4786,223.28,223.17,9.45748767]
[1734179352167,4.4778,223.32,223.17,9.45748767]
[1734179352659,20.0,223.3,223.17,9.45748767]
[1734179352863,20.0,223.29,223.17,1.021]
[1734179353044,20.0,223.25,223.17,1.021]
[1734179354054,4.4794,223.24,223.17,1.021]
[1734179355882,4.4788,223.28,223.18,8.43648767]
[1734179356257,4.4788,223.28,223.17,9.45748767]
[1734179356878,22.3892,223.32,223.17,9.45748767]
[1734179357678,20.0,223.28,223.17,9.45748767]
[1734179357895,4.4788,223.27,223.17,1.021]
[1734179360384,23.776884,223.26,223.17,1.021]
[1734179360559,20.0,223.23,223.17,1.021]
[1734179362288,4.4798,223.22,223.17,1.021]
[1734179364083,20.0,223.24,223.17,1.021]
[1734179366276,20.0,223.22,223.17,1.021]
[1734179366881,7.13208151,223.25,223.17,1.021]
[1734179367063,20.0,223.22,223.17,1.021]
[1734179367494,24.4799,223.22,223.17,1.021]
[1734179369185,2.65278151,223.25,223.17,9.45748767]
[1734179369482,4.4792,223.26,223.18,8.43648767]
[1734179369685,4.4792,223.26,223.17,1.021]
[1734179370073,8.9557,223.32,223.17,1.021]
[1734179370276,0.25098,223.31,223.17,1.021]
[1734179370692,20.0,223.28,223.17,1.021]
[1734179371372,4.4788,223.27,223.17,1.021]
[1734179372284,2.73975018,223.26,223.17,1.021]
[1734179372471,4.4792,223.25,223.17,1.021]
[1734179382196,4.4796,223.23,223.17,1.021]
[1734179388292,4.4796,223.23,223.11,1.6381]
[1734179388498,4.4796,223.23,223.11,10.07458767]
[1734179389401,24.4796,223.23,223.11,10.07458767]
[1734179390776,24.4796,223.23,223.12,8.43648767]
[1734179392408,24.4796,223.23,223.13,8.43648767]
[1734179392597,20.0,223.24,223.14,8.43648767]
[1734179392930,20.0,223.24,223.12,0.12549]
[1734179393215,20.0,223.24,223.16,8.43648767]
[1734179393398,4.479,223.26,223.16,8.43648767]
[1734179395212,4.479,223.26,223.17,1.6043]
[1734179395915,4.479,223.26,223.17,10.04078767]
[1734179396097,4.479,223.26,223.17,1.6043]
[1734179400911,4.479,223.26,223.18,6.3619]
[1734179401505,4.479,223.26,223.17,1.6043]
[1734179404821,4.479,223.26,223.17,10.04078767]
[1734179405123,4.4784,223.3,223.19,8.43648767]
[1734179405322,2.74463797,223.29,223.19,8.43648767]
[1734179405624,2.74463797,223.29,223.17,1.6043]
[1734179405919,2.74463797,223.29,223.18,8.43648767]
[1734179406117,4.4784,223.3,223.19,0.12549]
[1734179406518,20.0,223.29,223.19,0.12549]
[1734179407406,20.0,223.29,223.18,0.12549]
[1734179407613,4.4786,223.28,223.17,1.6043]
[1734179407821,4.4786,223.28,223.17,10.04078767]
[1734179408126,20.0,223.27,223.17,10.04078767]
[1734179408822,20.0,223.27,223.18,8.43648767]
[1734179409133,20.0,223.27,223.19,8.43648767]
[1734179410108,19.5,223.27,223.19,8.43648767]
[1734179412009,4.4786,223.28,223.19,14.95568767]
[1734179412210,4.4786,223.28,223.2,8.43648767]
[1734179413838,20.0,223.29,223.21,1.6083]
[1734179414326,20.0,223.29,223.21,10.04478767]
[1734179414528,4.4778,223.32,223.23,8.43648767]
[1734179414707,4.4778,223.32,223.24,1.6083]
[1734179418231,4.4772,223.35,223.26,6.3888]
[1734179418438,24.4772,223.35,223.26,6.3888]
[1734179419418,24.4772,223.35,223.24,1.6083]
[1734179419727,24.4772,223.35,223.14,11.2037]
[1734179419728,20.0,223.23,223.17,1.645]
[1734179420108,20.0,223.21,223.17,1.645]
[1734179420936,24.4801,223.21,223.17,1.645]
[1734179421333,24.4801,223.21,223.11,1.645]
[1734179421523,23.776884,223.2,223.11,1.645]
[1734179422420,4.4804,223.19,223.11,1.645]
[1734179422913,20.0,223.17,223.11,1.645]
[1734179424035,20.0,223.21,223.11,1.645]
[1734179425161,4.4802,223.2,223.11,1.645]
[1734179427341,4.4806,223.18,223.11,1.645]
[1734179427540,20.0,223.16,223.11,1.645]
[1734179428744,4.4812,223.15,223.11,1.645]
[1734179432449,3.4812,223.15,223.11,1.645]
[1734179433454,20.0,223.16,223.11,1.645]
[1734179433840,2.73777556,223.19,223.05,7.9966]
[1734179434151,4.4812,223.15,223.05,16.43308767]
[1734179434675,4.4812,223.15,223.06,8.43648767]
[1734179435042,4.4812,223.15,223.06,7.93648767]
[1734179435243,4.4812,223.15,223.05,16.43308767]
[1734179435552,4.4812,223.15,223.05,7.9966]
[1734179436856,0.12549,223.14,223.05,1.6078]
[1734179437146,0.12549,223.1,223.0,1.6153]
[1734179437349,20.0,223.07,223.0,1.6153]
[1734179437934,20.0,223.1,223.0,1.6153]
[1734179438136,24.4823,223.1,223.0,1.6153]
[1734179438535,4.4823,223.1,223.01,8.43648767]
[1734179441151,4.4823,223.1,223.0,1.6153]
[1734179441353,4.4823,223.1,223.0,10.05178767]
[1734179442173,4.4823,223.1,223.0,1.6153]
[1734179444843,3.4823,223.1,223.0,1.6153]
[1734179445838,23.902374,223.09,223.0,1.6153]
[1734179446036,4.4826,223.08,223.0,1.6153]
[1734179447743,4.4826,223.08,223.0,1.1153]
[1734179449251,8.436488,223.09,223.0,9.55178767]
[1734179449451,8.436488,223.09,223.01,8.43648767]
[1734179449960,24.482,223.12,223.01,8.43648767]
[1734179450168,20.0,223.08,223.01,8.43648767]
[1734179451767,20.0,223.08,223.0,9.55178767]
[1734179452061,20.0,223.08,223.0,1.1153]
[1734179454345,20.0,223.08,223.0,9.55178767]
[1734179455256,20.0,223.08,223.0,1.1153]
[1734179458259,4.4828,223.07,223.0,1.1153]
[1734179458457,6.0893,222.98,222.97,2.24e-05]
[1734179458662,20.0,222.94,222.83,1.5819]
[1734179459367,20.0,222.95,222.83,1.5819]
[1734179460476,20.0,222.91,222.83,1.5819]
[1734179461363,20.0,222.87,222.83,1.5819]
[1734179463249,4.4855,222.94,222.83,1.5819]
[1734179464282,20.0,222.91,222.83,1.5819]
[1734179465565,4.4855,222.94,222.83,1.5819]
[1734179466154,20.0,222.9,222.83,1.5819]
[1734179468652,20.0,222.95,222.83,1.5819]
[1734179469650,22.62563917,222.95,222.83,1.5819]
[1734179470779,20.0,222.91,222.83,1.5819]
[1734179471374,20.0,222.94,222.83,10.01838767]
[1734179471574,22.62563917,222.95,222.83,10.01838767]
[1734179471972,20.0,222.97,222.84,15.01838767]
[1734179472247,4.4848,222.98,222.84,15.01838767]
[1734179472451,4.4839,223.02,222.84,15.01838767]
[1734179472761,0.12549,222.99,222.84,15.01838767]
[1734179473151,2.7428802,222.96,222.84,15.01838767]
[1734179473353,2.7428802,222.96,222.84,6.5819]
[1734179475857,23.902374,222.95,222.84,6.5819]
[1734179477480,20.0,222.92,222.84,6.5819]
[1734179478776,20.0,222.92,222.83,1.5819]
[1734179479986,20.0,222.92,222.78,20.0]
[1734179479987,21.66247858,223.03,222.9,8.43648767]
[1734179480173,7.8485,223.09,222.97,8.43648767]
[1734179480374,4.483,223.07,222.97,8.43648767]
[1734179481176,4.4822,223.11,222.99,13.26336908]
[1734179481380,4.4822,223.11,223.01,13.26336908]
[1734179481687,4.4822,223.11,223.0,13.26336908]
[1734179482586,23.776884,223.1,223.01,1.5934]
[1734179482785,23.776884,223.1,223.01,14.85676908]
[1734179483587,23.776884,223.1,223.01,1.5934]
[1734179485890,20.0,223.07,223.01,1.5934]
[1734179487463,28.259884,223.06,223.01,1.5934]
[1734179487888,20.0,223.03,223.01,1.5934]
[1734179488571,20.0,223.03,222.94,6.6122]
[1734179488572,20.0,223.03,222.95,1.5934]
[1734179490693,20.0,223.03,222.95,14.85676908]
[1734179491398,4.483,223.06,222.96,13.26336908]
[1734179491688,4.483,223.06,222.95,1.5934]
[1734179491987,7.17327651,223.06,222.95,1.5934]
[1734179492598,20.0,223.03,222.95,1.5934]
[1734179493789,20.0,222.99,222.9,1.6488]
[1734179498485,28.261584,222.98,222.9,1.6488]
[1734179499711,20.0,222.95,222.9,1.6488]
[1734179500200,28.261584,222.98,222.9,1.6488]
[1734179500409,4.4847,222.98,222.9,1.6488]
[1734179503294,23.776884,222.97,222.9,1.6488]
[1734179503695,20.0,222.94,222.85,10.00700948]
[1734179504301,20.0,222.94,222.85,1.5105]
[1734179505598,24.4855,222.94,222.85,1.5105]
[1734179507104,24.4855,222.94,222.85,10.00700948]
[1734179507300,24.4855,222.94,222.86,8.49650948]
[1734179507917,4.4848,222.98,222.87,8.49650948]
[1734179508312,4.4848,222.98,222.88,8.49650948]
[1734179509318,20.25098,223.01,222.88,8.49650948]
[1734179509629,20.0,222.97,222.88,8.49650948]
[1734179509929,20.0,222.97,222.87,8.49650948]
[1734179511249,20.0,222.97,222.88,8.49650948]
[1734179511419,20.0,222.97,222.89,8.49650948]
[1734179511741,20.0,222.97,222.88,8.49650948]
[1734179513849,20.0,222.97,222.87,8.49650948]
[1734179514133,20.0,222.97,222.85,1.5105]
[1734179514310,4.4851,222.96,222.85,1.5105]
[1734179514713,4.4851,222.96,222.85,10.00700948]
[1734179514928,4.4851,222.96,222.86,8.49650948]
[1734179515311,4.4851,222.96,222.87,8.49650948]
[1734179515711,4.4851,222.96,222.86,8.49650948]
[1734179515930,4.4851,222.96,222.85,10.00700948]
[1734179515931,23.776884,222.95,222.85,10.00700948]
[1734179516143,23.776884,222.95,222.85,1.5105]
[1734179517119,23.776884,222.95,222.85,10.00700948]
[1734179519836,20.0,222.92,222.85,1.5105]
[1734179520721,23.776884,222.96,222.88,8.49650948]
[1734179520925,23.776884,222.97,222.88,8.49650948]
[1734179521118,23.776884,222.97,222.85,1.5105]
[1734179521751,4.4851,222.96,222.86,8.49650948]
[1734179521922,4.4851,222.96,222.87,8.49650948]
[1734179522245,24.4851,222.96,222.85,1.5105]
[1734179522441,24.4851,222.96,222.86,8.49650948]
[1734179523128,24.4851,222.96,222.87,8.49650948]
[1734179523341,24.4851,222.96,222.86,8.49650948]
[1734179523643,24.4851,222.96,222.87,8.49650948]
[1734179524026,24.4851,222.96,222.87,7.99650948]
[1734179524228,24.4851,222.96,222.85,1.5105]
[1734179524436,24.4851,222.96,222.87,8.49650948]
[1734179524629,2.63297731,222.99,222.79,7.30427175]
[1734179524630,20.0,222.92,222.79,7.30427175]